{"text_format":"3","workbook":"xlsx","n_sheets":1,"sheets":["Sheet1"],"read":"whole","date_system":"1900"}

{"sheet":"Sheet1","index":0,"n_rows":63,"n_cols":8,"rows_kept":63,"merged":[[2,4,2,7]]}
[null,"Janitorial Supplies Price Sheet"]
[null,"Requisition #COF-102225"]
[]
["ITEM #","ITEM / DESCRIPTION","Estimated Annual Usage","UNIT OF MEASURE","UNIT PRICE","Extended Price","Check box if product varies from description ","Notes to Explain Variance"]
["Column1","Column2","Column4","Column5","Column6","Column7"]
[1,"Aerosol, Dispenser Metered Spray, Cinnamon (12 cans per case)",18,"Case",null,{"$f":"Table134[[#This Row],[Column4]]*Table134[[#This Row],[Column6]]","v":{"v":0,"d":"$0.00"}}]
[2,"Can Liners, White, 24x32, 0.5 mil (500/case of rolls)",21,"Case",null,{"$f":"Table134[[#This Row],[Column4]]*Table134[[#This Row],[Column6]]","v":{"v":0,"d":"$0.00"}}]
[3,"Can Liners, White 30’ x 36” .8mil 200/cs",9,"Case",null,{"$f":"Table134[[#This Row],[Column4]]*Table134[[#This Row],[Column6]]","v":{"v":0,"d":"$0.00"}}]
[4,"Can Liners, Clear, 30x37, 13mic (500/case of rolls)",72,"case",null,{"$f":"Table134[[#This Row],[Column4]]*Table134[[#This Row],[Column6]]","v":{"v":0,"d":"$0.00"}}]
[5,"Can Liners, Black, 33x39, 1.0 mil (100/case of rolls)",62,"Case",null,{"$f":"Table134[[#This Row],[Column4]]*Table134[[#This Row],[Column6]]","v":{"v":0,"d":"$0.00"}}]
[6,"Can Liners, Black, 33x39, 2 mil (100/case of rolls)",11,"Case",null,{"$f":"Table134[[#This Row],[Column4]]*Table134[[#This Row],[Column6]]","v":{"v":0,"d":"$0.00"}}]
[7,"Can Liners, Black, 38x58, 1.4 mil (100/case of rolls)",40,"Case",null,{"$f":"Table134[[#This Row],[Column4]]*Table134[[#This Row],[Column6]]","v":{"v":0,"d":"$0.00"}}]
[8,"Can Liners, Black, 38x58, 1.6 mil (100/case of rolls)",138,"Case",null,{"$f":"Table134[[#This Row],[Column4]]*Table134[[#This Row],[Column6]]","v":{"v":0,"d":"$0.00"}}]
[9,"Can Liners, Black, 38x58, 2.0 mil (100/case of rolls)",60,"Case",null,{"$f":"Table134[[#This Row],[Column4]]*Table134[[#This Row],[Column6]]","v":{"v":0,"d":"$0.00"}}]
[10,"Can Liners, Black, 38x58, 3.0 mil (100/case of rolls)",31,"Case",null,{"$f":"Table134[[#This Row],[Column4]]*Table134[[#This Row],[Column6]]","v":{"v":0,"d":"$0.00"}}]
[11,"Cleaner, Blue Cyclone All Purpose Neutral Cleaner (Gallon) No Substitution Dilution Rate 2 oz per gallon",30,"Each",null,{"$f":"Table134[[#This Row],[Column4]]*Table134[[#This Row],[Column6]]","v":{"v":0,"d":"$0.00"}}]
[12,"Cleaner, Clorox Toilet Bowl cleaner with bleach (12 - 24oz bottles per case) No Substitution",11,"Case",null,{"$f":"Table134[[#This Row],[Column4]]*Table134[[#This Row],[Column6]]","v":{"v":0,"d":"$0.00"}}]
[13,"Cleaner, Diversey Virex TB Ready-to-Use Disinfectant Cleaner (12 - 32ozbottles)",17,"Case",null,{"$f":"Table134[[#This Row],[Column4]]*Table134[[#This Row],[Column6]]","v":{"v":0,"d":"$0.00"}}]
[14,"Cleaner, Kemzyme QT-Bacteria Enzyme Cleaner and Odor Remover (32 oz. bottle)",35,"Each",null,{"$f":"Table134[[#This Row],[Column4]]*Table134[[#This Row],[Column6]]","v":{"v":0,"d":"$0.00"}}]
[15,"Cleaner, Lysol Disinfectant Cleaner 144oz No Substitution 4/cs",10,"Case",null,{"$f":"Table134[[#This Row],[Column4]]*Table134[[#This Row],[Column6]]","v":{"v":0,"d":"$0.00"}}]
[16,"Pine Sol 80oz 3/cs",70,"Case",null,{"$f":"Table134[[#This Row],[Column4]]*Table134[[#This Row],[Column6]]","v":{"v":0,"d":"$0.00"}}]
[17,"Cleaner, Zep Neutral pH Floor Cleaner (1 Gallon) (2/case)",5,"Case",null,{"$f":"Table134[[#This Row],[Column4]]*Table134[[#This Row],[Column6]]","v":{"v":0,"d":"$0.00"}}]
[18,"Cups, Foam 10 oz (1000/case)",8,"Case",null,{"$f":"Table134[[#This Row],[Column4]]*Table134[[#This Row],[Column6]]","v":{"v":0,"d":"$0.00"}}]
[19,"Cups, Foam 12 oz (1000/case)",10,"Case",null,{"$f":"Table134[[#This Row],[Column4]]*Table134[[#This Row],[Column6]]","v":{"v":0,"d":"$0.00"}}]
[20,"Detergent, Dawn Platinum Dishwashing Liquid Dish Soap , 90oz. bottle No Substitutions",52,"Each",null,{"$f":"Table134[[#This Row],[Column4]]*Table134[[#This Row],[Column6]]","v":{"v":0,"d":"$0.00"}}]
[21,"Disinfectant, Diversey™ Crew® Neutral Non-Acid Bowl And Bathroom Disinfectant (12 - 32oz bottles per case)",62,"Each",null,{"$f":"Table134[[#This Row],[Column4]]*Table134[[#This Row],[Column6]]","v":{"v":0,"d":"$0.00"}}]
[22,"Disinfectant, Lysol Aerosal Lemon Sented (19 oz bottle) No Substitution",29,"Each",null,{"$f":"Table134[[#This Row],[Column4]]*Table134[[#This Row],[Column6]]","v":{"v":0,"d":"$0.00"}}]
[23,"Disinfectant, Odoban, (1 Gallon) (4/case) Dilution Rate 4 oz per gallon",41,"Case",null,{"$f":"Table134[[#This Row],[Column4]]*Table134[[#This Row],[Column6]]","v":{"v":0,"d":"$0.00"}}]
[24,"Glass Cleaner, Windex (32 oz Trigger Spray 8 per case) No Substitution",17,"Each",null,{"$f":"Table134[[#This Row],[Column4]]*Table134[[#This Row],[Column6]]","v":{"v":0,"d":"$0.00"}}]
[25,"Glass Cleaner, Windex, 5 gallon bag in box No Substitution",21,"Each",null,{"$f":"Table134[[#This Row],[Column4]]*Table134[[#This Row],[Column6]]","v":{"v":0,"d":"$0.00"}}]
[26,"Gloves,1400-1 Black Widow Sm Nitrile Powder Free, 6.0 mil, 100/cs \n(no Substitutions)",79,"Each",null,{"$f":"Table134[[#This Row],[Column4]]*Table134[[#This Row],[Column6]]","v":{"v":0,"d":"$0.00"}}]
[27,"Gloves,1400-2 Black Widow Med Nitrile Powder Free, 6.0 mil, 100/cs\n(no Substitutions)",12,"Each",null,{"$f":"Table134[[#This Row],[Column4]]*Table134[[#This Row],[Column6]]","v":{"v":0,"d":"$0.00"}}]
[28,"Gloves,1400-3 Black Widow Lg Nitrile Powder Free, 6.0 mil, 100/cs\n(no Substitutions)",18,"Each",null,{"$f":"Table134[[#This Row],[Column4]]*Table134[[#This Row],[Column6]]","v":{"v":0,"d":"$0.00"}}]
[29,"Gloves 1400-4 Black Widow XL Nitrile Powder Free, 6.0 mil, 100/cs\n(no Substitutions)",11,"Each",null,{"$f":"Table134[[#This Row],[Column4]]*Table134[[#This Row],[Column6]]","v":{"v":0,"d":"$0.00"}}]
[30,"Gloves,9388-3 Nitrile Powder Free, Black - Large (100/box)",187,"Each",null,{"$f":"Table134[[#This Row],[Column4]]*Table134[[#This Row],[Column6]]","v":{"v":0,"d":"$0.00"}}]
[31,"Gloves, Latex Powder Free - Small (100/box)",7,"Case",null,{"$f":"Table134[[#This Row],[Column4]]*Table134[[#This Row],[Column6]]","v":{"v":0,"d":"$0.00"}}]
[32,"Gloves, Latex Powder Free - Medium (100/box)",9,"Case",null,{"$f":"Table134[[#This Row],[Column4]]*Table134[[#This Row],[Column6]]","v":{"v":0,"d":"$0.00"}}]
[33,"Gloves, Latex Powder Free - Large (100/box)",2,"Case",null,{"$f":"Table134[[#This Row],[Column4]]*Table134[[#This Row],[Column6]]","v":{"v":0,"d":"$0.00"}}]
[34,"Gloves, Latex Powder Free - Xlarge (100/box)",3,"Case",null,{"$f":"Table134[[#This Row],[Column4]]*Table134[[#This Row],[Column6]]","v":{"v":0,"d":"$0.00"}}]
[35,"Laundry Solution, Enzyme Cleaner - 5 gallon pail",19,"Each",null,{"$f":"Table134[[#This Row],[Column4]]*Table134[[#This Row],[Column6]]","v":{"v":0,"d":"$0.00"}}]
[36,"Paper Towels, Center Pull (white), 2 ply, 600 sheets per roll, 450' per roll (6 rolls per case)",302,"Case",null,{"$f":"Table134[[#This Row],[Column4]]*Table134[[#This Row],[Column6]]","v":{"v":0,"d":"$0.00"}}]
[37,"Paper Towels,Scott C-Fold 1 ply Bleached (2400 sheets)",23,"Case",null,{"$f":"Table134[[#This Row],[Column4]]*Table134[[#This Row],[Column6]]","v":{"v":0,"d":"$0.00"}}]
[38,"Paper Towels, Hardwound White Rolls 700' (6 rolls per case)",11,"Case",null,{"$f":"Table134[[#This Row],[Column4]]*Table134[[#This Row],[Column6]]","v":{"v":0,"d":"$0.00"}}]
[39,"Paper Towel,KCC02001, Hardwound, 1 ply, 8\"x950' (6/ case), Scott Brand - No Subsitution",70,"Case",null,{"$f":"Table134[[#This Row],[Column4]]*Table134[[#This Row],[Column6]]","v":{"v":0,"d":"$0.00"}}]
[40,"Paper Towels, Kitchen, (85 sheets per roll, 30 rolls per case)",13,"Case",null,{"$f":"Table134[[#This Row],[Column4]]*Table134[[#This Row],[Column6]]","v":{"v":0,"d":"$0.00"}}]
[41,"Paper Towels,Scott Blue Shop Towels (55 sheets per roll, 12 rolls per case)",10,"Case",null,{"$f":"Table134[[#This Row],[Column4]]*Table134[[#This Row],[Column6]]","v":{"v":0,"d":"$0.00"}}]
[42,"Paper Towels, White Multi-Fold, 2 ply, 9.25\"W x 9.5\"L, 250/pkg, 4000 per case",58,"Case",null,{"$f":"Table134[[#This Row],[Column4]]*Table134[[#This Row],[Column6]]","v":{"v":0,"d":"$0.00"}}]
[43,"Paper Towels, Kleenex White Tri-Fold, 150/pk, 16 pks/case, 2,400 per case No Substitutions",63,"Case",null,{"$f":"Table134[[#This Row],[Column4]]*Table134[[#This Row],[Column6]]","v":{"v":0,"d":"$0.00"}}]
[44,"Paper Towels, White Roll Towel 800' (6 rolls per case)",59,"Case",null,{"$f":"Table134[[#This Row],[Column4]]*Table134[[#This Row],[Column6]]","v":{"v":0,"d":"$0.00"}}]
[45,"Pet Waste Bags, 13 x 9 inches, Black (30 rolls per case / 200 bags)",18,"Case",null,{"$f":"Table134[[#This Row],[Column4]]*Table134[[#This Row],[Column6]]","v":{"v":0,"d":"$0.00"}}]
[46,"Polishing Floor Pad, 20\" Diameter, White (5 per box)",24,"Box",null,{"$f":"Table134[[#This Row],[Column4]]*Table134[[#This Row],[Column6]]","v":{"v":0,"d":"$0.00"}}]
[47,"Sanitizer, Purell, 1904-02 Advanced Hand Sanitizer Green Certified Foam Refill, For LTX-12 Dispensers, 1,200 mL, 2/cs",12,"Case",null,{"$f":"Table134[[#This Row],[Column4]]*Table134[[#This Row],[Column6]]","v":{"v":0,"d":"$0.00"}}]
[48,"Soap, DIA35452 Antibacterial Original Foaming Hand Wash, Plus Aloe,1 gal, 4/cs",46,"Case",null,{"$f":"Table134[[#This Row],[Column4]]*Table134[[#This Row],[Column6]]","v":{"v":0,"d":"$0.00"}}]
[49,"Soap, Dial Complete Foaming Hand Wash Antibacterial, 7.5 oz. (8/cs)",18,"Case",null,{"$f":"Table134[[#This Row],[Column4]]*Table134[[#This Row],[Column6]]","v":{"v":0,"d":"$0.00"}}]
[50,"Soap, STOKO Refresh® Foam Soaps, 800mL Refill 6/cs (no Substitutions)",63,"Case",null,{"$f":"Table134[[#This Row],[Column4]]*Table134[[#This Row],[Column6]]","v":{"v":0,"d":"$0.00"}}]
[51,"Tissue, Toilet Charmin Ultra Soft Toilet Paper Super Plus Roplls, 2-ply, 201 sheets/roll, 32 rolls/pkg. No Substitutions",12,"Case",null,{"$f":"Table134[[#This Row],[Column4]]*Table134[[#This Row],[Column6]]","v":{"v":0,"d":"$0.00"}}]
[52,"Tissue, Toilet Household 2-ply 500 sheet, (96 per case)",191,"Case",null,{"$f":"Table134[[#This Row],[Column4]]*Table134[[#This Row],[Column6]]","v":{"v":0,"d":"$0.00"}}]
[53,"Tissue, Toilet Jumbo 9\" with core, 2ply 700' per roll (12 per case)",208,"Case",null,{"$f":"Table134[[#This Row],[Column4]]*Table134[[#This Row],[Column6]]","v":{"v":0,"d":"$0.00"}}]
[54,"Tissue, Toilet Junior Jumbo 9\", coreless, 2ply 700'+ per roll (12 per case)",273,"Case",null,{"$f":"Table134[[#This Row],[Column4]]*Table134[[#This Row],[Column6]]","v":{"v":0,"d":"$0.00"}}]
[55,"Toilet Bowl Blocks, Cherry (12 per box)",156,"Box",null,{"$f":"Table134[[#This Row],[Column4]]*Table134[[#This Row],[Column6]]","v":{"v":0,"d":"$0.00"}}]
[56,"Urinal Screens Wave Style (2 per box)",7,"Box",null,{"$f":"Table134[[#This Row],[Column4]]*Table134[[#This Row],[Column6]]","v":{"v":0,"d":"$0.00"}}]
[57,"Wipes, Lysol Disinfectant (75 ct) 6/cs",211,"Case",null,{"$f":"Table134[[#This Row],[Column4]]*Table134[[#This Row],[Column6]]","v":{"v":0,"d":"$0.00"}}]
[{"$nulls":5},{"$f":"SUM(F6:F62)","v":{"v":0,"d":"$0.00"}}]